bitfinex-derivatives/quotes_SOLF0:USTF0_20251002
["timestamp","ask_amount","ask_price","bid_price","bid_amount"]
[1759374667567,7.43,223.79,223.73,1.37993614]
[1759374668668,7.43,223.79,223.73,5.40063614]
[1759374669366,7.43,223.83,223.75,5.40023614]
[1759374669565,7.43,223.83,223.75,4.0203]
[1759374670666,7.43,223.83,223.78,1.37993614]
[1759374671068,1.37993614,223.87,223.78,1.37993614]
[1759374671268,7.43,223.84,223.76,1.37993614]
[1759374671464,1.37993614,223.83,223.75,4.0203]
[1759374671864,7.43,223.82,223.75,4.0203]
[1759374672165,62.5018,223.89,223.72,5.40073614]
[1759374672166,7.43,223.8,223.72,5.40073614]
[1759374673268,1.37993614,223.79,223.72,5.40073614]
[1759374674977,7.43,223.78,223.7,7.37209891]
[1759374675471,7.43,223.78,223.71,4.0209]
[1759374676571,7.43,223.78,223.7,7.37209891]
[1759374677276,7.43,223.84,223.73,4.0207]
[1759374677473,1.37993614,223.8,223.73,4.0207]
[1759374677674,7.43,223.79,223.7,7.37209891]
[1759374678075,7.43,223.79,223.72,4.0209]
[1759374678778,7.43,223.79,223.72,5.40083614]
[1759374679276,7.43,223.79,223.72,4.0209]
[1759374681779,7.43,223.77,223.7,4.0212]
[1759374683180,4.26083798,223.82,223.69,1.37993614]
[1759374683181,8.80993614,223.81,223.71,1.37993614]
[1759374684275,7.43,223.81,223.69,64.71084122]
[1759374684478,7.29,223.8,223.66,5.83043179]
[1759374684677,7.29,223.8,223.66,2.15624122]
[1759374685478,11.3096,223.8,223.71,4.021]
[1759374685874,7.29,223.8,223.69,64.71204122]
[1759374686783,7.29,223.8,223.72,4.0209]
[1759374687778,11.3095,223.8,223.72,4.0209]
[1759374687983,11.3095,223.8,223.7,4.0212]
[1759374689085,7.68,223.78,223.7,4.0212]
[1759374689382,4.0198,223.79,223.68,2.15624122]
[1759374689383,4.26083798,223.82,223.71,64.70674122]
[1759374689577,11.94083798,223.82,223.71,64.70674122]
[1759374689884,7.68,223.82,223.71,64.70674122]
[1759374690084,7.68,223.82,223.76,4.0202]
[1759374690287,7.68,223.86,223.74,2.15624122]
[1759374690881,7.68,223.86,223.79,4.0196]
[1759374699286,11.6984,223.86,223.77,4.02]
[1759374699975,4.0187,223.84,223.74,6.17664122]
[1759374700179,7.68,223.83,223.74,4.0204]
[1759374700589,4.0191,223.82,223.74,4.0204]
[1759374700787,7.68,223.81,223.74,4.0204]
[1759374704088,7.68,223.81,223.76,4.0202]
[1759374705493,4.0183,223.87,223.78,4.0198]
[1759374705692,7.68,223.86,223.77,2.15624122]
[1759374706590,7.68,223.86,223.75,3.67419057]
[1759374706791,7.68,223.86,223.74,5.83043179]
[1759374706991,7.68,223.86,223.75,3.67419057]
[1759374708592,7.68,223.86,223.79,4.0196]
[1759374710692,11.6984,223.86,223.76,4.02]
[1759374713088,7.68,223.83,223.73,7.69479057]
[1759374713290,9.83624122,223.83,223.71,3.67419057]
[1759374713488,9.83624122,223.83,223.7,3.67419057]
[1759374713683,2.15624122,223.83,223.75,20.0]
[1759374713890,7.96,223.82,223.75,20.0]
[1759374714092,2.15624122,223.83,223.75,20.0]
[1759374714297,7.96,223.82,223.75,20.0]
[1759374714689,7.96,223.79,223.75,20.0]
[1759374714889,4.0195,223.8,223.75,20.0]
[1759374715191,7.96,223.79,223.75,20.0]
[1759374715591,4.0195,223.8,223.75,20.0]
[1759374715894,7.96,223.79,223.75,20.0]
[1759374716283,4.0195,223.8,223.75,20.0]
[1759374716688,7.96,223.79,223.75,20.0]
[1759374716888,4.0195,223.8,223.75,20.0]
[1759374717185,7.96,223.79,223.75,20.0]
[1759374717394,62.5312,223.78,223.75,20.0]
[1759374717691,7.96,223.76,223.65,3.39]
[1759374717896,7.96,223.76,223.67,4.0217]
[1759374720596,7.96,223.76,223.68,3.39]
[1759374722896,7.96,223.76,223.69,4.0214]
[1759374724393,7.96,223.81,223.72,3.39]
[1759374724795,7.96,223.85,223.74,3.39]
[1759374724998,7.96,223.85,223.77,4.02]
[1759374725296,7.96,223.85,223.77,3.39]
[1759374726006,7.96,223.91,223.79,3.39]
[1759374727390,7.96,223.91,223.79,5.54624122]
[1759374727601,7.96,223.91,223.8,62.5238]
[1759374728601,7.96,223.91,223.81,4.0193]
[1759374729696,7.96,223.91,223.79,5.54624122]
[1759374730000,7.96,223.91,223.75,3.39]
[1759374731102,7.96,223.88,223.75,3.39]
[1759374731598,11.9781,223.88,223.75,7.4103]
[1759374736809,4.0185,223.86,223.75,3.39]
[1759374736999,7.96,223.85,223.75,3.39]
[1759374737398,4.0188,223.84,223.75,3.39]
[1759374737600,7.96,223.83,223.75,3.39]
[1759374738211,7.96,223.83,223.72,4.0208]
[1759374738506,7.96,223.83,223.73,3.39]
[1759374739906,7.96,223.81,223.73,3.39]
[1759374744213,7.96,223.81,223.75,1.37968458]
[1759374747308,13.35898458,223.81,223.73,1.37968458]
[1759374747606,9.33968458,223.81,223.71,5.40068458]
[1759374747813,7.96,223.81,223.75,1.37968458]
[1759374748015,4.98163131,223.91,223.75,1.37968458]
[1759374748016,7.79,223.85,223.8,1.37968458]
[1759374748211,1.37968458,223.88,223.77,3.38]
[1759374748508,7.79,223.85,223.77,1.37968458]
[1759374750515,5.39848458,223.84,223.75,1.37968458]
[1759374750821,7.79,223.83,223.75,1.37968458]
[1759374751213,7.79,223.83,223.79,4.75968458]
[1759374751413,7.79,223.9,223.82,3.38]
[1759374751609,7.79,223.9,223.83,1.37968458]
[1759374752917,12.08125152,223.93,223.87,1.37968458]
[1759374753117,12.08125152,223.93,223.85,1.37968458]
[1759374753316,13.4609361,223.93,223.85,1.37968458]
[1759374753919,12.08125152,223.93,223.85,1.37968458]
[1759374754116,12.08125152,223.93,223.86,3.38]
[1759374754316,4.29125152,223.93,223.86,3.38]
[1759374754514,4.29125152,223.93,223.9,3.38]
[1759374754711,4.29125152,223.93,223.89,1.37968458]
[1759374754712,5.39588458,223.99,223.89,4.75968458]
[1759374755022,1.37968458,223.99,223.89,4.75968458]
[1759374755224,1.37968458,223.99,223.92,3.38]
[1759374755721,8.56733228,224.01,223.92,3.38]
[1759374755722,9.94701686,224.01,223.93,1.37968458]
[1759374755921,8.56733228,224.01,223.93,1.37968458]
[1759374756324,8.56733228,224.01,223.92,3.38]
[1759374756325,5.39558458,224.0,223.92,3.38]
[1759374756619,1.37968458,223.96,223.88,4.75968458]
[1759374756816,7.79,223.95,223.86,1.37968458]
[1759374757011,1.37968458,223.94,223.86,1.37968458]
[1759374757316,7.79,223.91,223.84,1.37968458]
[1759374760624,7.79,223.91,223.86,1.37968458]
[1759374760819,7.79,223.91,223.87,3.38]
[1759374761222,7.79,223.91,223.86,1.37968458]
[1759374762422,7.79,223.93,223.86,1.37968458]
[1759374762617,9.16968458,223.93,223.84,1.37968458]
[1759374763129,7.79,223.93,223.88,1.37968458]
[1759374763426,7.79,223.93,223.88,4.75968458]
[1759374765223,1.37968458,223.97,223.88,4.75968458]
[1759374765427,7.79,223.96,223.88,1.37968458]
[1759374765831,1.37968458,223.95,223.88,1.37968458]
[1759374766425,1.37968458,223.93,223.84,4.75968458]
[1759374766734,7.79,223.92,223.84,4.75968458]
[1759374767231,7.79,223.92,223.86,1.37968458]
[1759374769433,7.79,223.92,223.85,4.0185]
[1759374769434,9.16968458,223.97,223.89,3.38]
[1759374773143,9.16968458,223.97,223.88,1.37968458]
[1759374773339,7.79,223.94,223.87,5.39788458]
[1759374774235,7.53,223.92,223.83,1.37968458]
[1759374774435,7.53,223.92,223.85,1.37968458]
[1759374775137,7.53,223.92,223.81,4.0191]
[1759374775335,7.53,223.9,223.83,1.37968458]
[1759374776138,7.53,223.9,223.81,7.3991]
[1759374776440,7.53,223.88,223.79,1.37968458]
[1759374777138,7.53,223.88,223.77,3.38]
[1759374777139,1.37968458,223.87,223.77,4.75968458]
[1759374777345,7.53,223.84,223.77,1.37968458]
[1759374778034,7.53,223.84,223.75,1.37968458]
[1759374778736,7.53,223.84,223.73,7.4006]
[1759374778737,7.53,223.82,223.74,1.37968458]
[1759374778945,7.53,223.8,223.69,9.34082266]
[1759374779142,7.53,223.8,223.71,1.37968458]
[1759374779339,7.53,223.8,223.69,9.34082266]
[1759374779340,7.53,223.8,223.75,1.37968458]
[1759374779545,7.53,223.8,223.76,3.38]
[1759374779744,7.53,223.84,223.77,1.37968458]
[1759374780336,7.53,223.84,223.79,1.37968458]
[1759374780536,7.53,223.84,223.79,4.75968458]
[1759374780742,7.53,223.89,223.83,1.37968458]
[1759374781142,7.53,223.89,223.79,3.38]
[1759374781143,7.53,223.89,223.81,1.37968458]
[1759374781642,7.53,223.89,223.83,1.37968458]
[1759374784743,4.10910756,223.9,223.84,1.37968458]
[1759374785050,11.63910756,223.9,223.82,3.38]
[1759374785248,11.63910756,223.9,223.83,1.37968458]
[1759374786746,11.63910756,223.9,223.84,4.0187]
[1759374787052,7.53,223.96,223.89,1.37968458]
[1759374787343,7.53,223.96,223.85,3.38]
[1759374787344,1.37968458,223.95,223.87,1.37968458]
[1759374787549,7.53,223.94,223.85,1.37968458]
[1759374788551,7.53,223.94,223.82,62.5185]
[1759374788552,7.53,223.92,223.82,1.37968458]
[1759374789152,7.53,223.92,223.84,4.0187]
[1759374789350,7.53,223.92,223.84,5.39838458]
[1759374789646,7.53,223.92,223.86,1.37968458]
[1759374790041,7.53,223.92,223.87,7.3982]
[1759374790246,7.53,223.96,223.88,1.37968458]
[1759374790548,7.53,223.96,223.89,4.0178]
[1759374792947,7.53,223.94,223.86,5.39798458]
[1759374793149,7.53,223.94,223.86,4.0183]
[1759374793352,7.53,223.94,223.86,5.39798458]
[1759374795359,7.53,223.94,223.88,4.018]
[1759374796258,7.53,223.94,223.88,5.39768458]
[1759374799257,7.53,223.94,223.89,1.37968458]
[1759374799459,7.53,223.97,223.89,1.37968458]
[1759374800861,7.53,223.97,223.9,4.0177]
[1759374801556,7.53,223.97,223.91,1.37968458]
[1759374802059,7.53,223.97,223.93,3.38]
[1759374802559,7.53,223.97,223.94,4.0169]
[1759374802758,2.15701686,224.01,223.94,4.0169]
[1759374803060,7.51,224.01,223.94,4.0169]
[1759374803564,7.51,224.01,223.93,1.37968458]
[1759374803565,11.5257,224.01,223.93,1.37968458]
[1759374804861,7.51,224.01,223.93,5.39678458]
[1759374805060,8.88968458,224.01,223.93,5.39678458]
[1759374805958,7.51,224.01,223.93,5.39678458]
[1759374806160,8.88968458,224.01,223.93,1.37968458]
[1759374806360,7.51,224.01,223.91,3.37]
[1759374807363,7.51,224.01,223.9,4.0175]
[1759374807559,11.5258,224.01,223.9,4.0175]
[1759374807759,7.51,224.01,223.9,4.0175]
[1759374807954,7.51,224.01,223.88,2.15238146]
[1759374808156,11.8361,223.99,223.87,4.018]
[1759374808361,11.8361,223.99,223.86,3.37]
[1759374808561,11.8361,223.99,223.89,7.3878]
[1759374809160,11.8361,223.99,223.87,2.15238146]
[1759374809958,4.0164,223.97,223.88,4.018]
[1759374810164,7.82,223.96,223.88,4.018]
[1759374811863,7.82,223.96,223.9,4.0176]
[1759374812464,7.82,223.96,223.85,3.37]
[1759374814865,11.8366,223.96,223.85,7.3885]
[1759374815261,11.8366,223.96,223.87,4.0182]
[1759374815661,7.82,223.96,223.87,2.15238146]
[1759374816061,7.82,223.96,223.88,10.86]
[1759374816262,7.82,223.96,223.89,3.37]
[1759374816867,7.82,223.96,223.91,4.0174]
[1759374817967,7.82,223.99,223.91,4.0174]
[1759374819669,7.82,223.99,223.91,17.5174]
[1759374822672,7.82,223.99,223.93,4.0171]
[1759374823177,7.82,224.0,223.91,13.5]
[1759374824676,11.8359,224.0,223.91,13.5]
[1759374825379,2.15238146,224.01,223.91,13.5]
[1759374825778,7.82,224.0,223.91,13.5]
[1759374826369,2.15238146,224.01,223.91,13.5]
[1759374826573,7.82,223.96,223.91,13.5]
[1759374827279,4.0165,223.97,223.91,13.5]
[1759374827979,7.82,223.96,223.91,13.5]
[1759374828176,11.8365,223.97,223.91,13.5]
[1759374830685,62.4651,224.02,223.88,18.2479]
[1759374830686,7.82,224.02,223.93,4.017]
[1759374831683,7.82,224.02,223.92,3.37]
[1759374832585,4.0159,224.01,223.92,3.37]
[1759374832786,7.82,224.0,223.92,3.37]
[1759374833284,7.82,224.0,223.93,13.51]
[1759374834483,11.3352,224.04,223.94,3.36]
[1759374836487,11.3352,224.04,223.95,10.88]
[1759374836787,4.0155,224.02,223.95,10.88]
[1759374837484,7.32,224.04,223.95,10.88]
[1759374838188,11.3353,224.04,223.95,10.88]
[1759374840580,7.32,224.03,223.95,10.88]
[1759374841988,0.77713265,224.04,223.95,10.88]
[1759374842290,7.32,224.03,223.95,10.88]
[1759374842891,2.92951411,224.04,223.95,10.88]
[1759374843090,7.32,224.03,223.95,10.88]
[1759374843793,4.0157,224.01,223.95,10.88]
[1759374843988,65.38881411,224.04,223.95,10.88]
[1759374844698,7.32,224.03,223.95,10.88]
[1759374844897,65.38881411,224.04,223.95,10.88]
[1759374845197,565.38881411,224.04,223.95,10.88]
[1759374845494,7.32,224.03,223.95,10.88]
[1759374845696,4.016,224.0,223.95,10.88]
[1759374845892,7.32,224.03,223.95,10.88]
[1759374846493,4.0157,224.02,223.95,10.88]
[1759374851794,7.32,223.99,223.96,3.36]
[1759374852001,7.32,224.03,223.96,3.36]
[1759374854306,7.32,224.01,223.95,10.88]
[1759374855601,7.32,224.01,223.95,14.24]
[1759374861512,500.77713265,224.04,223.96,3.36]
[1759374863214,500.0,224.04,223.96,7.3764]
[1759374863411,500.0,224.04,223.97,3.36]
[1759374864312,500.0,224.04,223.96,5.51238146]
[1759374864503,500.0,224.04,223.97,3.36]
[1759374864708,500.0,224.04,223.97,7.3764]
[1759374865108,500.0,224.04,223.98,3.36]
[1759374866309,500.0,224.04,224.01,3.36]
[1759374866510,507.46,224.04,224.0,1.37643737]
[1759374866704,500.0,224.04,224.0,1.37643737]
[1759374866909,7.46,224.03,224.0,1.37643737]
[1759374867910,500.0,224.04,224.0,1.37643737]
[1759374868106,7.46,224.03,224.0,1.37643737]
[1759374868809,500.0,224.04,224.0,1.37643737]
[1759374869007,610.2,224.04,224.0,12.26643737]
[1759374869212,7.46,224.03,224.0,10.89]
[1759374869611,610.2,224.04,224.0,10.89]
[1759374869913,7.46,224.03,224.0,10.89]
[1759374872013,610.2,224.04,224.0,10.89]
[1759374872310,7.46,224.03,224.0,10.89]
[1759374872917,610.2,224.04,224.0,10.89]
[1759374873112,7.46,224.03,224.0,10.89]
[1759374873313,610.2,224.04,224.0,10.89]
[1759374873517,7.46,224.03,224.0,10.89]
[1759374874312,610.2,224.04,224.0,10.89]
[1759374874509,7.46,224.03,224.0,10.89]
[1759374875023,500.0,224.04,224.01,3.36]
[1759374875215,500.0,224.04,224.0,10.89]
[1759374875415,500.0,224.04,224.01,4.73643737]
[1759374875712,7.46,224.03,224.0,14.25]
[1759374877821,610.18,224.04,224.0,10.89]
[1759374878118,7.46,224.03,224.0,10.89]
[1759374878517,610.18,224.04,224.0,10.89]
[1759374879020,7.46,224.03,224.0,10.89]
[1759374879915,610.18,224.04,224.0,10.89]
[1759374880112,610.18,224.04,224.01,3.36]
[1759374880516,617.64,224.04,224.01,3.36]
[1759374881022,617.64,224.04,224.0,10.89]
[1759374881023,7.46,224.03,224.0,10.89]
[1759374881222,7.46,224.01,224.0,10.89]
[1759374885126,1.37643737,224.01,224.0,10.68399325]
[1759374885322,9.27643737,224.01,224.0,10.68399325]
[1759374886015,118.99643737,224.01,224.0,10.68399325]
[1759374886226,117.62,224.01,224.0,10.68399325]
[1759374886818,118.99643737,224.01,224.0,10.68399325]
[1759374888624,62.4789,223.97,223.93,6.6283]
[1759374888822,8.83643737,223.94,223.92,0.20333]
[1759374889028,4.0175,223.91,223.84,7.71]
[1759374889320,4.0175,223.91,223.8,5.39573737]
[1759374889321,1.37643737,223.89,223.8,9.08643737]
[1759374889628,110.16,223.88,223.8,7.71]
[1759374890721,110.16,223.88,223.82,7.71]
[1759374890917,1.37643737,223.89,223.82,7.71]
[1759374891220,110.16,223.88,223.82,7.71]
[1759374891616,110.16,223.88,223.78,4.0197]
[1759374891617,7.46,223.86,223.81,0.07]
[1759374891818,110.16,223.86,223.81,0.07]
[1759374892021,10.52072352,223.85,223.81,0.07]
[1759374892223,7.46,223.85,223.81,7.78]
[1759374896129,7.69,223.85,223.81,7.78]
[1759374897727,9.06643737,223.85,223.81,7.78]
[1759374899121,7.69,223.84,223.81,0.07]
[1759374901429,1.37643737,223.85,223.81,0.07]
[1759374901728,9.06643737,223.85,223.81,0.07]
[1759374901926,7.69,223.84,223.81,0.07]
[1759374902329,7.69,223.84,223.81,7.84]
[1759374902632,1.37643737,223.85,223.81,7.84]
[1759374903332,1.37643737,223.85,223.82,7.77]
[1759374903534,9.06643737,223.85,223.82,7.77]
[1759374905036,1.37643737,223.85,223.82,7.77]
[1759374905927,7.69,223.84,223.81,0.07]
[1759374906329,1.37643737,223.87,223.81,0.07]
[1759374906529,7.69,223.86,223.81,0.07]
[1759374906733,1.37643737,223.87,223.81,0.07]
[1759374907429,7.69,223.84,223.81,0.07]
[1759374907736,7.69,223.82,223.81,0.07]
[1759374911039,117.89,223.82,223.81,0.07]
[1759374912344,117.89,223.82,223.74,7.77]
[1759374912345,7.69,223.79,223.7,7.77]
[1759374912536,1.37643737,223.75,223.7,7.77]
[1759374912734,1.37643737,223.75,223.66,1.37643737]
[1759374913036,9.06643737,223.75,223.67,7.77]
[1759374913235,1.37643737,223.73,223.67,7.77]
[1759374913440,9.06643737,223.73,223.63,9.14643737]
[1759374914143,7.69,223.71,223.63,7.77]
[1759374914351,39.84643737,223.75,223.66,1.37643737]
[1759374914849,66.70169653,223.87,223.71,7.77]
[1759374914850,65.56,223.77,223.71,7.77]
[1759374915143,7.69,223.77,223.68,1.37643737]
[1759374915642,7.69,223.77,223.67,7.77]
[1759374915947,7.69,223.77,223.68,1.37643737]
[1759374916845,7.69,223.77,223.72,7.77]
[1759374917142,7.69,223.77,223.68,7.77]
[1759374917339,7.69,223.75,223.68,7.77]
[1759374923649,9.06643737,223.75,223.67,1.37643737]
[1759374924149,9.06643737,223.75,223.67,8.98643737]
[1759374925546,7.69,223.75,223.67,8.98643737]
[1759374927450,9.06643737,223.75,223.67,8.98643737]
[1759374928051,9.06643737,223.75,223.67,7.61]
[1759374928250,10.76606799,223.75,223.67,7.61]
[1759374928448,7.69,223.75,223.67,7.61]
[1759374929155,11.7105,223.75,223.67,7.61]
[1759374929353,3.07740806,223.74,223.67,7.61]
[1759374930648,3.07740806,223.74,223.63,64.72956415]
[1759374930649,7.77,223.82,223.7,7.61]
[1759374930852,7.77,223.82,223.73,7.61]
[1759374931053,10.85069074,223.82,223.73,7.61]
[1759374931249,3.08069074,223.81,223.73,7.61]
[1759374932754,3.08069074,223.81,223.75,4.0203]
[1759374933253,3.08069074,223.8,223.75,4.0203]
[1759374933454,7.77,223.82,223.75,11.6303]
[1759374933654,3.08774427,223.81,223.75,11.6303]
[1759374933856,3.08774427,223.8,223.76,7.61]
[1759374934049,3.08774427,223.8,223.75,4.0203]
[1759374934050,3.08774427,223.81,223.75,11.6303]
[1759374934254,3.08774427,223.8,223.76,7.61]
[1759374934557,7.77,223.82,223.75,11.6303]
[1759374934757,3.08871004,223.81,223.77,4.02]
[1759374934952,3.08824429,223.85,223.78,7.61]
[1759374935253,3.08824429,223.84,223.78,7.61]
[1759374935559,3.08824429,223.83,223.77,11.63]
[1759374935756,3.08847792,223.82,223.78,7.61]
[1759374935956,3.08847792,223.85,223.78,7.61]
[1759374936157,10.85847792,223.84,223.75,2.15746415]
[1759374936457,3.08847792,223.83,223.74,4.0205]
[1759374936656,3.08847792,223.82,223.74,4.0205]
[1759374936956,3.08847792,223.81,223.74,4.0205]
[1759374937157,3.08847792,223.83,223.74,4.0205]
[1759374937451,3.08847792,223.82,223.75,7.61]
[1759374937645,3.08847792,223.83,223.75,7.61]
[1759374937846,3.08847792,223.83,223.77,7.61]
[1759374938259,3.08847792,223.85,223.77,7.61]
[1759374938457,3.08847792,223.84,223.77,7.61]
[1759374938658,3.08847792,223.85,223.77,7.61]
[1759374938857,3.08847792,223.84,223.77,7.61]
[1759374939057,3.08847792,223.86,223.79,7.61]
[1759374939257,4.19389653,223.87,223.79,7.61]
[1759374939755,7.28237445,223.87,223.79,7.61]
[1759374939952,4.19389653,223.87,223.79,7.61]
[1759374940553,4.19389653,223.87,223.8,4.0194]
[1759374940957,4.19389653,223.87,223.79,7.61]
[1759374941159,7.28237445,223.87,223.79,7.61]
[1759374941368,7.77,223.86,223.79,7.61]
[1759374941662,10.85847792,223.86,223.76,7.61]
[1759374945059,10.85847792,223.86,223.76,11.6301]
[1759374949970,10.85847792,223.86,223.76,7.61]
[1759374950166,3.08847792,223.85,223.76,7.61]
[1759374950371,10.85847792,223.86,223.76,7.61]
[1759374952575,10.85847792,223.86,223.77,4.0199]
[1759374953274,10.85847792,223.86,223.76,7.61]
[1759374955371,10.85847792,223.86,223.77,4.02]
[1759374955573,10.85847792,223.86,223.78,7.57]
[1759374957080,7.77,223.86,223.78,7.57]
[1759374957481,7.77,223.86,223.78,11.5896]
[1759374957784,4.19389653,223.87,223.77,7.57]
[1759374957987,4.19389653,223.87,223.79,7.57]
[1759374960281,4.19389653,223.87,223.8,7.57]
[1759374961385,7.49,223.86,223.8,7.57]
[1759374968896,10.60535376,223.86,223.8,7.57]
[1759374969087,7.49,223.84,223.8,7.57]
[1759374969292,7.49,223.84,223.76,7.57]
[1759374969894,14.62415376,223.84,223.76,7.57]
[1759374970094,7.49,223.82,223.76,7.57]
[1759374971295,10.60945108,223.82,223.76,7.57]
[1759374971498,7.49,223.82,223.76,7.57]
[1759374971892,3.12039199,223.84,223.76,11.5901]
[1759374972096,7.49,223.86,223.77,7.57]
[1759374972300,3.12039199,223.85,223.77,7.57]
[1759374972497,3.12039199,223.84,223.77,7.57]
[1759374972697,3.12039199,223.83,223.77,7.57]
[1759374972897,3.12039199,223.85,223.77,7.57]
[1759374973097,3.12039199,223.84,223.77,7.57]
[1759374973395,3.12039199,223.85,223.8,4.0194]
[1759374973592,3.12039199,223.84,223.81,7.57]
[1759374973898,7.49,223.86,223.81,7.57]
[1759374973899,3.12039199,223.85,223.81,7.57]
[1759374974100,3.12039199,223.84,223.81,7.57]
[1759374974309,7.49,223.86,223.81,7.57]
[1759374974492,3.12483581,223.85,223.81,7.57]
[1759374974691,3.12483581,223.84,223.81,7.57]
[1759374974895,7.49,223.86,223.81,7.57]
[1759374975100,3.12483581,223.85,223.81,7.57]
[1759374975295,3.12483581,223.84,223.81,7.57]
[1759374975497,3.12483581,223.83,223.81,7.57]
[1759374975700,7.49,223.86,223.81,7.57]
[1759374975901,3.12765429,223.85,223.81,7.57]
[1759374976102,3.12765429,223.84,223.81,7.57]
[1759374976405,3.12765429,223.83,223.81,7.57]
[1759374976704,7.49,223.88,223.81,7.57]
[1759374976898,3.12828388,223.87,223.81,7.57]
[1759374977094,8.30443757,223.89,223.81,7.57]
[1759374977095,3.12828388,223.86,223.81,7.57]
[1759374977302,10.61828388,223.85,223.81,7.57]
[1759374977605,3.12828388,223.84,223.81,7.57]
[1759374977796,3.12828388,223.83,223.81,7.57]
[1759374977999,7.49,223.85,223.81,7.57]
[1759374978205,3.12868627,223.84,223.81,7.57]
[1759374978404,3.12868627,223.83,223.81,7.57]
[1759374978705,7.49,223.85,223.81,7.57]
[1759374978904,3.12915031,223.84,223.81,7.57]
[1759374979104,3.12915031,223.83,223.81,7.57]
[1759374979300,3.12915031,223.82,223.81,7.57]
[1759374983409,7.57,223.88,223.81,7.57]
[1759374983611,3.12961433,223.87,223.81,7.57]
[1759374983809,3.12961433,223.86,223.8,7.73]
[1759374984010,3.12961433,223.85,223.8,7.73]
[1759374984212,3.12961433,223.84,223.8,7.73]
[1759374984405,7.52,223.88,223.8,7.73]
[1759374984611,3.12950274,223.87,223.8,7.73]
[1759374984805,3.12950274,223.86,223.8,7.73]
[1759374985006,4.28653757,223.89,223.8,7.73]
[1759374985007,3.12950274,223.85,223.8,7.73]
[1759374985311,3.12836529,223.88,223.83,7.73]
[1759374985500,7.52,223.92,223.87,7.73]
[1759374985706,3.12835231,223.91,223.86,4.0184]
[1759374985907,3.12835231,223.9,223.87,7.73]
[1759374986103,3.12835231,223.89,223.86,4.0184]
[1759374986310,7.52,223.86,223.73,7.73]
[1759374986605,7.52,223.83,223.73,7.73]
[1759374986811,7.52,223.83,223.7,64.70986415]
[1759374986812,3.12835231,223.82,223.74,4.0205]
[1759374987010,3.12835231,223.81,223.75,7.73]
[1759374987207,7.52,223.79,223.65,7.35752552]
[1759374987510,7.52,223.77,223.66,11.7519]
[1759374987708,3.12835231,223.76,223.66,11.7519]
[1759374987906,7.52,223.74,223.66,7.73]
[1759374988110,7.52,223.72,223.61,7.73]
[1759374988410,7.52,223.7,223.61,7.73]
[1759374988611,3.12835231,223.69,223.61,7.73]
[1759374988815,62.5567,223.69,223.54,7.73]
[1759374989010,7.52,223.65,223.54,7.73]
[1759374989209,3.12637915,223.64,223.54,7.73]
[1759374989614,9.67746415,223.65,223.54,7.73]
[1759374990111,9.67746415,223.65,223.55,7.73]
[1759374990305,1.38192862,223.64,223.55,7.73]
[1759374990613,8.90192862,223.6,223.5,7.73]
[1759374990911,1.38192862,223.56,223.5,7.73]
[1759374991809,1.38192862,223.56,223.43,62.6274]